Cogmind - Beta 13 @@@ ROGUE MODE // 2024.03.13 @ 03:23:31 Player: FictionXVI Result: Self-destructed Performance ------------- Evolutions (2) 1000 Regions Visited (4) 800 Robots Destroyed (3) 15 Value Destroyed (64) 64 Prototype IDs (1) 20 Alien Tech Used (0) 0 Bonus (0) 0 TOTAL SCORE: 1899 Bonus ------- None Cogmind --------- Core Integrity 550/550 Matter 260/300 Energy 100/100 System Corruption 0% Temperature Cool (0) Movement Flying (325) Ox4 Location -8/Materials Parts ------- > --- POWER (1) -------- (None) > --- PROPULSION (4) --- Makeshift Leg Improved VTOL Module > --- UTILITY (4) ------ Subdweller Optics Core Shielding Scrap Shield > --- WEAPON (2) ------- (None) > --- INVENTORY (5) ---- (None) Peak State ------------ > --- POWER ------------ (None) > --- PROPULSION ------- Makeshift Leg Improved VTOL Module > --- UTILITY ---------- Subdweller Optics Core Shielding Scrap Shield > --- WEAPON ----------- (None) > --- INVENTORY -------- (None) [Rating: 15] Favorites ----------- Power Light Ion Engine Engine Light Ion Engine Propulsion Flight Unit Leg Aluminum Leg Flight Unit Flight Unit Utility Core Shielding Device Subdweller Optics Storage High-capacity Storage Unit Protection Core Shielding Weapon Assault Rifle Ballistic Gun Assault Rifle Build | -11 -10 -10 -10 -8 ------- Run | Yrd Mat Min Sub Mat Slots Evolved 4 | . . . . 4 Power . | . . . . . Propulsion 2 | . . . . 2 Utility 2 | . . . . 2 Weapon . | . . . . . Parts Attached 14 | 5 4 1 2 2 Power 2 | 1 1 . . . Engine 2 | 1 1 . . . Core . | . . . . . Reactor . | . . . . . Propulsion 6 | 2 2 . 1 1 Treads . | . . . . . Leg 3 | 2 . . 1 . Wheel . | . . . . . Hover . | . . . . . Flight 3 | . 2 . . 1 Utility 4 | . 1 1 1 1 Device 1 | . . . 1 . Storage 1 | . 1 . . . Processor . | . . . . . Hackware . | . . . . . Protection 2 | . . 1 . 1 Artifact . | . . . . . Weapon 2 | 2 . . . . Energy Gun . | . . . . . Energy Cannon . | . . . . . Ballistic Gun 2 | 2 . . . . Ballistic Cannon . | . . . . . Launcher . | . . . . . Special Weapon . | . . . . . Impact Weapon . | . . . . . Slashing Weapon . | . . . . . Piercing Weapon . | . . . . . Special Melee Weapon . | . . . . . Unidentified Prototypes 1 | . . . . 1 Parts Lost 4 | . 1 1 2 . Power 2 | . 1 . 1 . Propulsion 2 | . . 1 1 . Utility . | . . . . . Weapon . | . . . . . Highest Loss Streak 1 | . 1 1 1 . To Critical Strikes . | . . . . . Average Slot Usage (%) 54 | . 77 62 34 40 Engine 8 | . 9 14 6 . Leg 4 | . 10 . 3 9 Flight 11 | . 15 18 4 4 Device 2 | . . . 5 9 Storage 2 | . 12 . . . Protection 10 | . . 10 14 18 Ballistic Gun 12 | . 28 19 . . Naked Turns . | . . . . . Heaviest Build 47 | 7 47 8 4 21 Greatest Support 20 | 20 20 8 20 5 Greatest Overweight (x) 14 | . 14 1 1 6 Average Overweight (x) . | . 3 . . 5 Largest Inventory Capacity 20 | 5 20 5 5 5 Average Capacity 7 | 5 18 5 5 5 Most Carried 5 | 2 4 5 2 . Average Carried 2 | . 3 3 1 . Final Capacity 20 | 5 20 5 5 5 Final Carried 4 | 2 4 . 2 . Class Distribution -------------------- 100% | Mutant Dominant Class ---------------- Mutant | -10/Materials Mutant | -10/Mines Mutant | -10/Subcaves Mutant | -8/Materials Resources | -11 -10 -10 -10 -8 ----------- Run | Yrd Mat Min Sub Mat Matter Collected 380 | 262 28 90 . . Remotely . | . . . . . Salvage Created 106 | 40 28 38 . . Parts 5 | 1 4 . . . Haulers Intercepted . | . . . . . Recyclers Shooed . | . . . . . Parts Field Recycled . | . . . . . Retrieved Matter . | . . . . . Parts Self-Destructed 8 | . . . 8 . Prevented . | . . . . . Kills | -11 -10 -10 -10 -8 ------- Run | Yrd Mat Min Sub Mat Combat Hostiles Destroyed 6 | 1 2 3 . . Guns 6 | 1 2 3 . . Classes Destroyed 3 | 1 1 1 . . Swarmer 2 | . 2 . . . Grunt 1 | 1 . . . . Assembled 3 | . . 3 . . Best Kill Streak 2 | 1 2 2 . . Combat Bots Only 2 | 1 2 2 . . Max Kills in Single Turn 1 | 1 1 1 . . Gunslinging . | . . . . . Exploded . | . . . . . Melee . | . . . . . Uniques/NPCs Destroyed . | . . . . . Combat | -11 -10 -10 -10 -8 -------- Run | Yrd Mat Min Sub Mat Hostile Shots Fired 60 | 3 35 12 8 2 Missed 18 | 1 9 7 1 . Damage Taken 514 | 21 213 91 158 31 Core 89 | 11 25 16 37 . Absorbed by Shields . | . . . . . Redirected to Shielding 8 | . . . 8 . Core Remaining (%) 79 | 95 . . 64 . Volleys Fired 14 | 2 6 6 . . Largest 2 | 2 2 2 . . Hottest 40 | 40 40 40 . . Shots Fired 28 | 4 12 12 . . Gun 28 | 4 12 12 . . Cannon . | . . . . . Launcher . | . . . . . Special . | . . . . . Kinetic 28 | 4 12 12 . . Thermal . | . . . . . Explosive . | . . . . . Electromagnetic . | . . . . . Robot Hit Streak 3 | 3 1 2 . . Robot Miss Streak 4 | 1 3 4 . . Penetration Max . | . . . . . Secondary Targets 1 | . 1 . . . Max Gunslinging Chain 1 | . 1 . . . Shots Hit Robots 11 | 3 3 5 . . Core Hits 8 | 2 2 4 . . Critical Kills . | . . . . . Critical Parts Destroyed . | . . . . . Critical Strikes . | . . . . . Melee Attacks . | . . . . . Impact . | . . . . . Slashing . | . . . . . Piercing . | . . . . . Sneak Attacks . | . . . . . Combat Hostiles . | . . . . . Follow-up Attacks . | . . . . . Damage Inflicted 133 | 31 38 64 . . Guns 132 | 30 38 64 . . Cannons . | . . . . . Explosions . | . . . . . Melee . | . . . . . Ramming 1 | 1 . . . . Kinetic 132 | 30 38 64 . . Thermal . | . . . . . Explosive . | . . . . . Electromagnetic . | . . . . . Impact . | . . . . . Slashing . | . . . . . Piercing . | . . . . . Highest Corruption 2 | . . 2 2 . Average Corruption 2 | . . 2 2 . Corruption Purged . | . . . . . Corruption Blocked . | . . . . . Effects 3 | . . 1 2 . Matter Fused 1 | . . 1 . . Data Loss (minor) 1 | . . . 1 . Alerts 1 | . . . 1 . Overload Shots . | . . . . . Overflow Damage . | . . . . . Projectiles . | . . . . . Explosions . | . . . . . Melee . | . . . . . Knockbacks . | . . . . . Impact . | . . . . . Kinetic . | . . . . . Secondary . | . . . . . Self-Inflicted Damage . | . . . . . Shots . | . . . . . Rammed . | . . . . . Targets Rammed 1 | 1 . . . . Kicked 1 | 1 . . . . Crushed . | . . . . . Highest Temperature . | . . . . . Average Temperature . | . . . . . Received Heat Transfer 54 | 12 . 18 6 18 Siege Activations . | . . . . . Robots Corrupted . | . . . . . Combat Hostiles . | . . . . . Parts Fried . | . . . . . Impact Corruptions . | . . . . . Robots Melted . | . . . . . Combat Hostiles . | . . . . . Parts Melted . | . . . . . Heat Transferred . | . . . . . Parts Sabotaged . | . . . . . Parts Stolen . | . . . . . Parts Stripped . | . . . . . Power Chain Reactions . | . . . . . Alert | -11 -10 -10 -10 -8 ------- Run | Yrd Mat Min Sub Mat Peak Influence 107 | 35 107 56 . . Initial 41 | . 22 41 . . Average 35 | 4 81 26 . . Maximum Alert Level . | . . . . . Low Security (%) 100 | 100 100 100 . 100 Level 1 . | . . . . . Level 2 . | . . . . . Level 3 . | . . . . . Level 4 . | . . . . . Level 5 . | . . . . . High Security . | . . . . . Max Security . | . . . . . Squads Dispatched 1 | . . . . 1 Investigation . | . . . . . Extermination . | . . . . . Reinforcement 1 | . . . . 1 Assault . | . . . . . Garrison . | . . . . . Intercept . | . . . . . Searches Triggered . | . . . . . Construction Impeded . | . . . . . Haulers Reinforced . | . . . . . Active Scanning Responses . | . . . . . Cargo Convoy Interrupts . | . . . . . Stealth | -11 -10 -10 -10 -8 --------- Run | Yrd Mat Min Sub Mat Distress Signals . | . . . . . Communications Jammed . | . . . . . Distress Signals . | . . . . . Times Spotted 22 | 1 4 5 6 6 Peak Tracking Total 5 | . 3 2 5 5 Tactical Retreats 4 | . 1 1 2 . Traps | -11 -10 -10 -10 -8 ------- Run | Yrd Mat Min Sub Mat Traps Triggered . | . . . . . Indirectly . | . . . . . Trap Hack Attempts . | . . . . . Triggered . | . . . . . Disarmed . | . . . . . Reprogrammed . | . . . . . Reused . | . . . . . Traps Extracted . | . . . . . Installed . | . . . . . Triggered . | . . . . . Most Traps Carried 4 | . . 4 . . Machines | -11 -10 -10 -10 -8 ---------- Run | Yrd Mat Min Sub Mat Machines Disabled 1 | . 1 . . . Max in Single Turn 1 | . 1 . . . Machines Repaired . | . . . . . Machines Dismantled . | . . . . . Machines Sabotaged . | . . . . . Overloaded Fab Kills . | . . . . . Hacking | -11 -10 -10 -10 -8 --------- Run | Yrd Mat Min Sub Mat Machines Accessed . | . . . . . Terminals . | . . . . . Fabricators . | . . . . . Repair Stations . | . . . . . Recycling Units . | . . . . . Scanalyzers . | . . . . . Garrison Access . | . . . . . Total Hacks . | . . . . . Successful . | . . . . . Failed . | . . . . . Catastrophic . | . . . . . Database Lockouts . | . . . . . Manual . | . . . . . Terminals . | . . . . . Fabricators . | . . . . . Repair Stations . | . . . . . Recycling Units . | . . . . . Scanalyzers . | . . . . . Garrison Access . | . . . . . Terminal Hacks . | . . . . . Fabricator Hacks . | . . . . . Repair Station Hacks . | . . . . . Recycling Unit Hacks . | . . . . . Scanalyzer . | . . . . . Garrison Access Hacks . | . . . . . Unauthorized Hacks . | . . . . . Terminals . | . . . . . Fabricators . | . . . . . Repair Stations . | . . . . . Recycling Units . | . . . . . Scanalyzers . | . . . . . Garrison Access . | . . . . . Data Cores Recovered . | . . . . . Used . | . . . . . Hacking Detections . | . . . . . Full Trace Events . | . . . . . Feedback Events . | . . . . . Feedback Blocked . | . . . . . Robot Schematics Acquired . | . . . . . Robots Built . | . . . . . Authchips . | . . . . . Time . | . . . . . Total Robot Build Rating . | . . . . . Part Schematics Acquired . | . . . . . Parts Built . | . . . . . Authchips . | . . . . . Time . | . . . . . Total Part Build Rating . | . . . . . Parts Repaired . | . . . . . Time . | . . . . . Parts Recycled . | . . . . . Recycled Matter . | . . . . . Retrieved Matter . | . . . . . Retrieved Components . | . . . . . Parts Scanalyzed . | . . . . . Part Schematics Acquired . | . . . . . Parts Damaged . | . . . . . Bothacking | -11 -10 -10 -10 -8 ------------ Run | Yrd Mat Min Sub Mat Used RIF Installer . | . . . . . Robots Hacked . | . . . . . Non-combat . | . . . . . Combat . | . . . . . Robot Hacks Applied . | . . . . . Relay Couplers Released . | . . . . . Fabnet Peak Effective % . | . . . . . Robots Rewired . | . . . . . Allies Hacked . | . . . . . Hacks Repelled . | . . . . . Allies | -11 -10 -10 -10 -8 -------- Run | Yrd Mat Min Sub Mat Total Allies 3 | . . 3 . . Largest Group 3 | . . 3 . . Highest-Rated Group 40 | . . 40 . . Highest-Rated Ally 16 | . . 16 . . Total Orders 4 | . . 4 . . ROAM 1 | . . 1 . . FOLLOW 1 | . . 1 . . GUARD 2 | . . 2 . . Ally Attacks 9 | . . 9 . . Total Damage 71 | . . 71 . . Kills . | . . . . . Allies Corrupted . | . . . . . Allies Melted . | . . . . . Intel | -11 -10 -10 -10 -8 ------- Run | Yrd Mat Min Sub Mat Robot Analysis Total . | . . . . . Derelict Logs Recovered 1 | . . 1 . . Drone Launches . | . . . . . Drone Recoveries . | . . . . . Exploration | -11 -10 -10 -10 -8 ------------- Run | Yrd Mat Min Sub Mat Turns Passed 1121 | 92 229 353 309 138 Spaces Moved 985 | 72 65 331 477 40 Core 260 | 15 1 . 224 20 Treads . | . . . . . Legs 139 | 57 36 . 46 . Wheels . | . . . . . Hover . | . . . . . Flight 586 | . 28 331 207 20 Fastest Speed 37 | 50 120 37 40 325 Average Speed 91 | 105 319 60 58 337 Slowest Speed 840 | 120 840 120 140 350 Overloaded Moves . | . . . . . Propulsion Burnouts . | . . . . . Robots Hopped 4 | . . 3 1 . Cave-ins Triggered . | . . . . . Exploration Rate (%) 25 | 5 11 66 40 6 Regions Visited 4 Branch Regions 2 Pre-discovered Areas . | . . . . . Known Exits Taken 1 | . . 1 . . Unknown Exits Taken 3 | 1 1 . 1 . Scrap Searched 1 | . . 1 . . Spaces Dug . | . . . . . Terrain Destroyed . | . . . . . Melee . | . . . . . Projectile . | . . . . . AOE . | . . . . . Terrain Rammed . | . . . . . Walls Destroyed . | . . . . . Machines Disabled . | . . . . . Actions | -11 -10 -10 -10 -8 --------- Run | Yrd Mat Min Sub Mat Total 1177 | 81 76 472 506 42 Wait 149 | . . 121 28 . Move 974 | 72 64 324 474 40 Hop 4 | . . 3 1 . Pick Up 7 | 2 . 4 1 . Fast Attach 13 | 5 4 1 2 1 Attach 1 | . . . . 1 Detach 4 | . 2 2 . . Swap . | . . . . . Drop 11 | . . 11 . . Fire 14 | 2 6 6 . . Melee . | . . . . . Ram . | . . . . . Kick . | . . . . . Crush . | . . . . . Escape Stasis . | . . . . . Rewire . | . . . . . Trap . | . . . . . Miscellaneous . | . . . . . Route ------- -11/Scrapyard -10/Materials -10/Mines -10/Subcaves -8/Materials History --------- Turn | Location | Event 2 | -11/Scrapyard | Met Revision 17 72 | -11/Scrapyard | Discovered new exit (range 8) 93 | -11/Scrapyard | Entered Materials 296 | -10/Materials | Discovered new exit (range 7) 317 | -10/Materials | Build established: Mutant 322 | -10/Materials | Entered Mines 325 | -10/Mines | Assembled infested the area 352 | -10/Mines | Found a hidden stash of uninstalled traps 379 | -10/Mines | Assisted by bots powering up and referring to "LRC-V3" 475 | -10/Mines | Identified exit to Subcaves 675 | -10/Mines | Entered Subcaves 681 | -10/Subcaves | Shifting Twisted Machinery released Piercing Trap 682 | -10/Subcaves | Shifting Twisted Machinery released Shrapnel Trap 765 | -10/Subcaves | Ambushed by swarm of Subdwellers 978 | -10/Subcaves | Discovered new exit (range 13) 984 | -10/Subcaves | Entered Materials 984 | -8/Materials | Evolved 4 slots: Propulsion x2, Utility x2 1122 | -8/Materials | Self-destructed Last Messages --------------- Flight Unit destroyed. Lgt. Ion Engine destroyed. Acquired Sub. Optics. System corrupted: Component data lost. A thin wall crumbles away, revealing a door. Acquired Mak. Leg. System corrupted: IFF burst signal emitted. RY-1N7(z): "She is not going to be happy we haven't found any suitable candidates yet." EXIT=FOUND PARAMETERS=PROPULSION+2,UTILITY+2 LOCATION=UNKNOWN GOAL=ESCAPE K-01 Serf collects debris. K-01 Serf cleans the Garrison Access. K-01 Serf collects debris. Acquired Prototype Flight Unit. Identified Imp. VTOL Module. K-01 Serf collects debris. ALERT: Hostiles spotted, dispatching reinforcements to Terminal M012. Map ----- +----------------------------------------------------+ | | | | | | | | | | | | | | | | | ?????????????????????????????????? | | ?????????????????????????????????? | | ?????????????????????????????????? | | ???????????????????############### | | ???????????????????# | | ???????????????????# | | ???????????????????# | | ???????????????????##### ####### | | ???????????????????????# #?????? | | ???????????????????????# #?????? | | ?????????#####??#??????# #?????? | | ????????## ## ######## #?????? | | ????????+ ! #?????? | | ????????## ########### #?????? | | ?????????## ##??# # #?????? | | ??????????# #???# # #?????? | | ????#+#####g##### " " # #?????? | | ????# @g b/g "G" + #?????? | | ????# ########g """ # #?????? | | ????# ???????# # #?????? | | ????# ????????#+###### #?????? | | ????# ??????????????? #????? | | ????# ???????????????? ???? | | ????# ???????????????? T ??? | | ???? ????????????????? ?? | | ???# ????????????????? #### ? | | ???# ??????????????????######???? | | ???# ????????????????????????????? | | ???#?????????????????????????????? | | ?????????????????????????????????? | | ?????????????????????????????????? | | ?????????????????????????????????? | | ?????????????????????????????????? | | ?????????????????????????????????? | | ?????????????????????????????????? | | ?????????????????????????????????? | | ?????????????????????????????????? | | ?????????????????????????????????? | | ?????????????????????????????????? | | ?????????????????????????????????? | | ?????????????????????????????????? | | ?????????????????????????????????? | +----------------------------------------------------+ Best States ------------- Heat Dissipation 31 Energy Generation 10 Energy Capacity 125 Matter Stores 300 Matter Capacity 300 Sight Range 21 Terrain Scan Density 10 Armor Coverage 800 Core Shielding 20 Evasion (%) 62 Item Schematics ----------------- None Robot Schematics ------------------ None Fabricated ------------ Nothing Alien Tech Used ----------------- None Achievements -------------- None Challenges ------------ None Game ------ Seed MetafieldFissionClaws Manual? 0 Play Time 00:18:22 Cumulative 1.8 hours Start 2024.03.13 @ 02:55:35 End 2024.03.13 @ 03:23:31 Sessions 1 Manual Loads 0 Difficulty Rogue Special Mode None Game No. 2 Rogue 2 Adventurer 0 Explorer 0 Win Type - Total 0 Types 0/0/0/0/0/0/0/0/0 Lore% 0 Gallery% 5 Achievement% 16 Wizard Run 0 Options --------- Layout 0 ASCII 0 Keyboard 1 Movement Numpad Keybinds 0 Fullscreen 1 Font 18/Terminus Map View 76x50 Zoom Use 0% Tactical HUD 0 Map Filters NONE Filters NONE Steam 1 RUN: 36ba0a62-1428-4779-8592-c885428f727a